[Event "2nd Bassano Easter 2022"]
[Site "Bassano del Grappa"]
[Date "2022.04.18"]
[Round "9.5"]
[White "Heberla, Bartlomiej"]
[Black "Kolb, Tobias"]
[Result "1-0"]
[ECO "B12"]
[WhiteElo "2570"]
[BlackElo "2316"]
[Annotator "TA"]
[PlyCount "107"]
[EventDate "2022.04.14"]
[EventType "swiss"]
[EventCountry "ITA"]
[SourceTitle "playchess.com"]
[Source "ChessBase"]
[SourceQuality "1"]
[TimeControl "30/3600+30:1800+30"]

{[%evp 12,107,23,31,31,19,37,18,47,44,54,29,20,27,23,18,16,0,0,-8,-16,-36,0,-25,-24,-39,-44,-33,-39,-24,-33,-32,-32,-24,-22,-29,-28,-23,-25,-38,-20,-31,-37,-31,-39,-34,0,0,37,37,37,42,48,45,48,41,143,62,148,139,170,193,185,81,75,43,12,31,26,39,38,40,34,0,655,643,825,735,767,717,1085,1087,1003,726,5122,2722,2537,5073,3453,2611,29983,29984,29978,2903,29986,29987,29987,29988]} 1. e4 {[%emt 0:00:05]} c6 {[%emt 0:00:02]} 2. d4 {[%emt 0:00:10]} d5 {[%emt 0:00:02]} 3. e5 {[%emt 0:00:05]} Bf5 {[%emt 0:00:03]} 4. Nf3 {[%emt 0:00:08]} e6 {[%emt 0:00:03]} 5. Be2 {[%emt 0:00:06]} Ne7 {[%emt 0:00:03]} 6. O-O {[%emt 0:00:08]} c5 {[%emt 0:00:02]} 7. dxc5 {[%emt 0:11:55]} Nec6 {[%emt 0:00:35] B12: Caro-Kann: Advance Variation.} 8. Bg5 {[%emt 0:02:41] [#]} (8. Be3 $5 {[%cal Rc2c4]}) 8... Qc7 $146 {[%emt 0:02:51]} ({Predecessor:} 8... Be7 9. Bxe7 Qxe7 10. c4 dxc4 11. Nbd2 c3 12. bxc3 O-O 13. Nc4 Nd7 14. Nd4 Ndxe5 15. Nxe5 Nxe5 16. Nxf5 exf5 {1-0 (77) Paravyan,D (2617)-Tari,A (2660) Chess.com INT 2022}) 9. c4 {[%emt 0:01:03]} dxc4 {[%emt 0:00:56] The position is equal.} 10. Na3 {[%emt 0:00:53]} Bxc5 {[%emt 0:08:49]} 11. Nb5 {[%emt 0:03:21]} ({Of course not} 11. Bxc4 O-O $11) 11... Qb6 {[%emt 0:01:03]} 12. Nd6+ {[%emt 0:07:37]} Bxd6 {[%emt 0:00:12]} 13. Qxd6 {[%emt 0:00:03]} Qb4 {[%emt 0:02:48][%cal Of5d3]} 14. Qxb4 {[%emt 0:07:32]} Nxb4 {[%emt 0:00:08]} 15. Bxc4 {[%emt 0:05:12]} N8c6 {[%emt 0:05:19] Prevents Nd4.} 16. Rad1 {[%emt 0:02:39] Inhibits Bd3.} h6 {[%emt 0:10:11]} 17. Be3 {[%emt 0:00:27]} Bg4 {[%emt 0:02:39]} 18. Bc5 {[%emt 0:09:10]} Bxf3 {[%emt 0:02:45]} 19. gxf3 {[%emt 0:00:05] [#]} Nxe5 $1 {[%emt 0:00:34]} 20. Bb5+ {[%emt 0:12:42]} Nbc6 {[%emt 0:00:08]} 21. f4 {[%emt 0:00:09] [#]} a6 $1 {[%emt 0:05:22]} 22. Ba4 {[%emt 0:00:21]} Nd7 {[%emt 0:01:15]} 23. Bd6 {[%emt 0:02:30][%cal Of4f5]} O-O-O {[%emt 0:01:55]} 24. Bxc6 {[%emt 0:00:41]} bxc6 {[%emt 0:00:05]} 25. Be7 {[%emt 0:00:05]} Rde8 {[%emt 0:00:09]} 26. Bb4 {[%emt 0:00:21]} Nb6 {[%emt 0:01:24]} 27. Rd6 $1 {[%emt 0:01:08]} Kb7 {[%emt 0:01:56]} 28. Rfd1 {[%emt 0:01:17]} Nd5 {[%emt 0:05:43]} 29. Rd7+ {[%emt 0:00:37]} Kb6 {[%emt 0:01:05]} (29... Kc8 $5 {[%cal Rc8d7]} 30. Rxf7 Nxb4 $11) 30. Bd6 {[%emt 0:00:00]} f6 {[%emt 0:00:00] Strongly threatening ...c5.} 31. b4 {[%emt 0:06:10] Against c5} Kb5 {[%emt 0:12:53]} 32. Rc1 {[%emt 0:00:25]} Ka4 $1 {[%emt 0:04:40]} 33. Rxc6 {[%emt 0:01:23] And now Ra7 would win.} Rc8 {[%emt 0:00:44]} (33... Ra8 $14) 34. Rxa6+ $16 {[%emt 0:01:28]} Kb5 {[%emt 0:00:04] [#]} 35. Rda7 {[%emt 0:03:34] &Bianco is more active.} Rhd8 {[%emt 0:03:43]} 36. a4+ {[%emt 0:00:47]} Kc4 {[%emt 0:00:12]} 37. b5 {[%emt 0:00:27]} (37. Rxg7 $18 {is more deadly. Threatens to win with h4.} Kd3 38. Bc5) 37... Kd3 {[%emt 0:02:21]} 38. Kg2 {[%emt 0:10:59][%cal Ob5b6]} Ke4 {[%emt 0:01:58]} 39. Rxg7 {[%emt 0:01:06]} e5 {[%emt 0:04:19]} 40. fxe5 {[%emt 0:03:31]} Nf4+ {[%emt 0:00:10]} 41. Kh1 {[%emt 0:00:07]} fxe5 {[%emt 0:05:12]} 42. h4 {[%emt 0:03:07] aiming for Rc7.} (42. Rg3 $5 {[%cal Rg3e3]} Nd3 43. Re3+ Kd4 44. Kg2 $16) 42... Kf3 $2 {[%emt 0:01:38][%mdl 8192]} (42... Rc2 $11) 43. Bxe5 $18 {[%emt 0:01:26]} Rd1+ {[%emt 0:03:41] [#]} 44. Rg1 $1 {[%emt 0:00:06]} Rxg1+ {[%emt 0:00:59]} 45. Kxg1 {[%emt 0:00:04][%mdl 4096] Endgame Rf6 is the strong threat. KRB-KRN} Ne2+ {[%emt 0:01:56]} 46. Kh2 {[%emt 0:00:13]} Rc4 {[%emt 0:00:11]} 47. Bg3 {[%emt 0:00:57]} Rc2 {[%emt 0:00:58]} 48. Rf6+ {[%emt 0:00:23]} Kg4 {[%emt 0:00:15]} 49. Be5 {[%emt 0:01:32] White threatens b6 and mate.} Rc5 {[%emt 0:00:26]} 50. Bd6 {[%emt 0:01:02]} Rc1 {[%emt 0:00:16]} 51. b6 {[%emt 0:00:32]} Rb1 {[%emt 0:01:00]} 52. a5 {[%emt 0:00:10]} (52. f3+ $142 Kh5 53. Rf5+ Kg6 54. Rb5 Rb3 55. Rxb3 h5 56. b7 Kf7 57. b8=Q) 52... Nd4 {[%emt 0:00:05]} 53. Rf4+ {[%emt 0:00:07]} Kh5 {[%emt 0:00:14]} 54. Rxd4 {[%emt 0:04:43] Weighted Error Value: White=0.10 (very precise) /Black=0.31} 1-0

[Event "2nd Bassano Easter 2022"]
[Site "Bassano del Grappa"]
[Date "2022.04.18"]
[Round "9.6"]
[White "Petrov, Martin"]
[Black "Kalogridis, Antonios"]
[Result "1-0"]
[ECO "B12"]
[WhiteElo "2542"]
[BlackElo "2322"]
[Annotator "TA"]
[PlyCount "105"]
[EventDate "2022.04.14"]
[EventType "swiss"]
[EventCountry "ITA"]
[SourceTitle "playchess.com"]
[Source "ChessBase"]
[SourceQuality "1"]
[TimeControl "30/3600+30:1800+30"]

{[%evp 9,105,14,11,5,10,-28,14,0,0,0,10,13,22,25,26,12,41,59,77,66,62,84,80,64,117,108,113,111,97,60,108,61,65,75,203,203,203,196,187,189,161,114,204,189,200,187,167,159,231,197,348,260,410,395,369,368,538,543,533,531,482,427,735,691,813,697,1397,1279,5506,5505,29977,29977,29981,29982,29983,29983,29983,29984,29984,29985,29985,29985,29986,29986,29986,29986,29986,29987,29986,29986,29986,29987,29987,29988,29988,29986,29990,29991]} 1. e4 {[%emt 0:04:14]} c6 {[%emt 0:00:01]} 2. d4 {[%emt 0:00:03]} d5 {[%emt 0:00:04]} 3. e5 {[%emt 0:00:10]} Bf5 {[%emt 0:00:04]} 4. h4 {[%emt 0:00:04]} h5 {[%emt 0:00:07]} 5. Bd3 {[%emt 0:00:03]} Bxd3 {[%emt 0:00:13]} 6. Qxd3 {[%emt 0:00:04][%cal Oe5e6] B12: Caro-Kann: Advance Variation.} Qa5+ {[%emt 0:00:08]} 7. b4 {[%emt 0:00:05]} Qa6 {[%emt 0:00:42]} 8. e6 {[%emt 0:00:22] The position is equal.} Qxd3 {[%emt 0:04:05]} 9. cxd3 {[%emt 0:00:05]} fxe6 {[%emt 0:00:27]} 10. Nd2 {[%emt 0:00:03]} e5 {[%emt 0:13:11]} 11. dxe5 {[%emt 0:00:05]} e6 {[%emt 0:00:44]} 12. Rb1 {[%emt 1:01:12] [#]} Ne7 $146 {[%emt 0:07:10]} ({Predecessor:} 12... Nd7 13. Ndf3 Nh6 14. Nh3 Ng4 15. Bf4 Be7 16. O-O O-O 17. Rfe1 Rae8 18. a4 Bd8 {1-0 (68) Martinez Alcantara,J (2598)-Bluebaum,M (2642) Chess.com INT 2022}) 13. Ndf3 {[%emt 0:01:50]} Ng6 {[%emt 0:00:39]} 14. Rh3 {[%emt 0:59:50]} Nd7 {[%emt 0:03:45]} 15. d4 {[%emt 0:00:07]} Be7 {[%emt 0:04:14]} 16. Rg3 {[%emt 0:00:33]} Nxh4 {[%emt 0:10:11]} (16... Ndf8 $14) 17. Nxh4 $16 {[%emt 0:00:18]} Bxh4 {[%emt 0:00:03]} 18. Rxg7 {[%emt 0:41:55]} Be7 {[%emt 0:01:57]} 19. Nh3 {[%emt 0:02:49]} Bf8 {[%emt 0:02:55]} (19... Kf8 $1 $14 20. Rg3 h4 21. Rf3+ Ke8) 20. Rg6 {[%emt 0:39:51]} (20. Rg3 $16) 20... Kf7 {[%emt 0:00:12]} 21. Rg3 {[%emt 0:00:02] &Bianco is much more active. The black rooks are badly placed.} Bh6 {[%emt 0:00:47]} (21... Be7 $16) 22. Bxh6 $18 {[%emt 0:00:12]} Rxh6 {[%emt 0:00:04] [#]} 23. Rbb3 $1 {[%emt 0:00:04] aiming for Rbf3+.} Rf8 {[%emt 0:08:59]} 24. Rbf3+ {[%emt 0:01:04]} Ke8 {[%emt 0:00:04]} 25. Rxf8+ {[%emt 0:01:49]} (25. Ra3 $18 a6 26. Rg7) 25... Kxf8 {[%emt 0:01:52][%mdl 4096] Endgame KRN-KRN} (25... Nxf8 $16 26. Nf4 Rh7) 26. Nf4 {[%emt 0:00:20]} Kf7 {[%emt 0:03:28]} 27. Ra3 {[%emt 0:05:48]} a6 {[%emt 0:00:06]} 28. Rh3 {[%emt 0:00:05]} h4 {[%emt 0:08:18]} (28... b6 $16 {is a better defense.} 29. Ra3 (29. Nxh5 c5 $16) 29... c5) 29. Ke2 {[%emt 0:04:42]} Nf8 $2 {[%emt 0:07:06] [#]} (29... b6 30. Ra3 c5) 30. Kf3 {[%emt 0:00:00]} Ng6 {[%emt 0:00:00]} (30... Rh8 $142 31. Kg4 Nd7 32. Rxh4 Rxh4+ 33. Kxh4 a5) 31. Nxg6 {[%emt 0:02:55]} Kxg6 {[%emt 0:00:17] KR-KR} 32. Kg4 {[%emt 0:00:05]} Rh8 {[%emt 0:00:28]} (32... Rh5 {was necessary.} 33. Rxh4 Rg5+ 34. Kf3 Rf5+ 35. Kg3 Kg7 36. Rg4+ Kh6) 33. Rf3 {[%emt 0:06:11]} Kg7 {[%emt 0:02:50]} 34. Rf6 {[%emt 0:00:37]} a5 {[%emt 0:01:26]} 35. bxa5 {[%emt 0:01:32]} Ra8 {[%emt 0:00:17]} (35... Re8 $142 36. f4 c5 37. dxc5 d4) 36. Rxe6 {[%emt 0:00:07]} Rxa5 {[%emt 0:03:32]} 37. Re7+ {[%emt 0:04:04]} Kf8 {[%emt 0:03:19]} 38. Rxb7 {[%emt 0:00:27]} Rxa2 {[%emt 0:00:04]} 39. f4 {[%emt 0:00:19][%cal Bf2f4,Bf4f5,Bf5f6][%mdl 32]} Rxg2+ {[%emt 0:03:05]} 40. Kxh4 {[%emt 0:00:11] White mates.} Rd2 {[%emt 0:01:30]} 41. Kg5 {[%emt 0:38:04]} Rxd4 {[%emt 0:00:13]} 42. e6 {[%emt 0:00:24]} Re4 {[%emt 0:00:47]} 43. f5 {[%emt 0:00:03]} Ke8 {[%emt 0:00:55]} 44. Kf6 {[%emt 0:00:10][%cal Rb7b8]} Kd8 {[%emt 0:00:06]} 45. Kf7 {[%emt 0:00:27]} d4 {[%emt 0:00:09]} 46. f6 {[%emt 0:01:19]} Kc8 {[%emt 0:00:50]} 47. Rb4 {[%emt 0:02:11]} c5 {[%emt 0:00:19]} 48. Rb5 {[%emt 0:01:17]} Kc7 {[%emt 0:00:23]} 49. Rxc5+ {[%emt 0:01:07]} Kd6 {[%emt 0:00:04]} 50. Ra5 {[%emt 0:00:05]} d3 {[%emt 0:00:24]} 51. e7 {[%emt 0:00:56]} ({Stronger than} 51. Ra8 Rxe6 52. Ra6+ Kd7 53. Rxe6 d2 $11) 51... d2 {[%emt 0:00:13]} 52. Ra8 {[%emt 0:00:35]} Kc7 {[%emt 0:00:16]} 53. Rd8 {[%emt 0:00:20] Weighted Error Value: White=0.07 (flawless) /Black=0.38} 1-0

[Event "2nd Bassano Easter 2022"]
[Site "Bassano del Grappa"]
[Date "2022.04.18"]
[Round "9.7"]
[White "Fischer, Daniel"]
[Black "Hilverda, Alexander"]
[Result "1-0"]
[ECO "B48"]
[WhiteElo "2356"]
[BlackElo "2282"]
[Annotator "TA"]
[PlyCount "83"]
[EventDate "2022.04.14"]
[EventType "swiss"]
[EventCountry "ITA"]
[SourceTitle "playchess.com"]
[Source "ChessBase"]
[SourceQuality "1"]
[TimeControl "30/3600+30:1800+30"]

{[%evp 11,83,35,32,2,68,18,75,45,58,63,87,90,90,89,91,87,89,79,140,146,133,135,316,314,360,346,299,286,314,179,273,276,276,277,267,285,268,256,377,335,398,389,424,406,593,591,590,422,585,415,620,488,463,481,479,494,496,496,495,487,457,460,520,497,521,525,558,557,677,649,489,467,5206,5081]} 1. e4 {[%emt 0:00:03]} c5 {[%emt 0:01:52]} 2. Nf3 {[%emt 0:00:04]} e6 {[%emt 0:00:04]} 3. d4 {[%emt 0:00:04]} cxd4 {[%emt 0:00:04]} 4. Nxd4 {[%emt 0:00:03]} Nc6 {[%emt 0:00:06]} 5. Nc3 {[%emt 0:00:04]} Qc7 {[%emt 1:00:54]} 6. Be3 {[%emt 0:00:04]} a6 {[%emt 1:01:16]} 7. g4 {[%emt 0:00:21] seems to push 7.Qd2 aside. B48: Sicilian: Taimanov: 5 Nc3 Qc7 6 Be3 a6 without Be2.} d6 {[%emt 0:01:20]} ({Better is} 7... b5 $11) 8. g5 {[%emt 0:01:24]} (8. h4 $14) 8... Bd7 {[%emt 0:00:11]} (8... h6 $11 {remains equal.}) 9. h4 {[%emt 0:02:22] [#] White is better.} b5 $146 {[%emt 0:00:49]} ({Predecessor:} 9... Nxd4 10. Qxd4 Ne7 11. O-O-O Nc6 12. Qd2 b5 13. h5 Rc8 14. Kb1 Na5 15. a3 Rb8 {1-0 (42) Bjerre,J (2529)-Begnis,N (2279) Germany 2019}) 10. a3 {[%emt 0:03:15]} h5 {[%emt 0:03:50]} 11. f4 {[%emt 0:09:11]} Nxd4 {[%emt 0:03:26]} 12. Qxd4 {[%emt 0:01:43]} Ne7 {[%emt 0:02:14]} 13. O-O-O {[%emt 0:03:19][%cal Of4f5]} Nc6 {[%emt 0:01:39]} 14. Qd2 {[%emt 0:00:45][%cal Og5g6] &Bianco is more active.} b4 {[%emt 0:02:11]} ({Black should try} 14... Rb8) 15. axb4 $16 {[%emt 0:02:44]} Nxb4 {[%emt 0:00:33]} 16. g6 {[%emt 0:04:08]} Be7 $2 {[%emt 0:10:27]} (16... f6 $16 {is a better defense.}) 17. Qd4 $18 {[%emt 0:05:33][%csl LRb4,LRg7] [#] Strongly threatening gxf7+.} Qa5 {[%emt 0:00:06]} 18. Qxg7 {[%emt 0:01:02]} Rf8 {[%emt 0:00:25]} 19. Kb1 {[%emt 0:04:49]} Rc8 {[%emt 0:00:37] Inhibits Bc4.} 20. Bh3 {[%emt 0:03:07]} (20. Bd4 $142) 20... f6 {[%emt 0:08:49]} (20... f5 $142) 21. Bd4 {[%emt 0:02:17]} e5 {[%emt 0:03:45]} 22. Bxd7+ {[%emt 0:02:12]} Kxd7 {[%emt 0:00:06]} 23. fxe5 {[%emt 0:00:29]} fxe5 {[%emt 0:00:16]} 24. Qxe5 {[%emt 0:23:27] Chess con chili.} ({Less strong is} 24. Bxe5 Rxc3 25. Bxc3 Qa2+ 26. Kc1 Rf2 27. Rxd6+ Kxd6 28. Qd4+ (28. Bxb4+ Kc6 $14) 28... Kc6 29. Qxf2 Qa1+ 30. Kd2 Qxh1 31. Bxb4 (31. Qe2 Qxh4 32. Qc4+ Kd7 $16) 31... Bxb4+ 32. c3 Qxe4 $16) 24... Qxe5 {[%emt 0:00:22]} (24... dxe5 {keeps fighting.} 25. Bb6+ Ke6 26. Bxa5 Nc6) 25. Bxe5 {[%emt 0:00:05]} Ke6 {[%emt 0:00:41]} 26. Bd4 {[%emt 0:00:46]} Rg8 {[%emt 0:05:16]} 27. Nd5 {[%emt 0:04:00]} Nc6 {[%emt 0:05:19]} (27... Nxd5 {was worth a try.} 28. exd5+ Kxd5) 28. Bc3 {[%emt 0:00:39]} Rcf8 {[%emt 0:01:34]} 29. g7 {[%emt 0:04:03]} Rf2 {[%emt 0:00:09]} 30. Rdf1 {[%emt 0:00:00]} Bxh4 {[%emt 0:00:00]} (30... Rxf1+ $142 31. Rxf1 Ne5 32. Nf4+ Kf7 33. Nxh5+ Kg6) 31. Rxf2 {[%emt 0:12:28] White is clearly winning.} Bxf2 {[%emt 0:01:22]} 32. Nf4+ {[%emt 0:04:26]} Ke7 {[%emt 0:00:35]} 33. Nxh5 {[%emt 0:00:21]} Bd4 {[%emt 0:01:01]} 34. Bxd4 {[%emt 0:01:13]} Nxd4 {[%emt 0:00:02][%mdl 4096] Endgame KRN-KRN} 35. Rf1 {[%emt 0:01:50]} Ne6 {[%emt 0:00:56]} 36. Kc1 {[%emt 0:19:49]} Ng5 {[%emt 0:48:04]} 37. Rf4 {[%emt 0:00:44]} Ne6 {[%emt 0:47:47]} 38. Rf5 {[%emt 0:00:41]} Nc5 {[%emt 0:01:37]} 39. e5 {[%emt 0:01:02]} d5 {[%emt 0:01:34]} 40. Rf6 {[%emt 0:03:21]} Ne6 {[%emt 0:04:25]} 41. Kd2 {[%emt 0:00:47]} Rb8 {[%emt 0:01:22] [#]} (41... a5 $142 42. Ke3 a4) 42. Rxe6+ $1 {[%emt 0:01:12] Black got outplayed after the opening.  Weighted Error Value: White=0.26 (precise) /Black=0.53} 1-0

[Event "2nd Bassano Easter 2022"]
[Site "Bassano del Grappa"]
[Date "2022.04.18"]
[Round "9.8"]
[White "Postny, Evgeny"]
[Black "Nandhidhaa, P V"]
[Result "1-0"]
[ECO "E11"]
[WhiteElo "2567"]
[BlackElo "2380"]
[Annotator "TA"]
[PlyCount "97"]
[EventDate "2022.04.14"]
[EventType "swiss"]
[EventCountry "ITA"]
[SourceTitle "playchess.com"]
[Source "ChessBase"]
[SourceQuality "1"]
[TimeControl "30/3600+30:1800+30"]

{[%evp 13,97,0,12,3,26,11,8,8,8,8,8,6,2,0,21,0,14,12,108,112,106,90,89,96,122,48,137,148,143,146,210,247,230,186,217,235,243,234,158,89,94,89,82,64,68,0,151,128,489,489,487,412,405,466,463,452,412,371,414,344,341,319,310,229,351,330,421,433,651,629,2228,2228,5385,4113,1533,1422,29992,593,29992,29993,29993,29994,29994,29995,29996,29993]} 1. d4 {[%emt 0:01:33]} Nf6 {[%emt 0:02:38]} 2. c4 {[%emt 0:00:09]} e6 {[%emt 0:00:06]} 3. Nf3 {[%emt 0:00:06]} d5 {[%emt 0:00:07]} 4. g3 {[%emt 0:00:09]} Bb4+ {[%emt 0:00:07]} 5. Bd2 {[%emt 0:00:07]} Be7 {[%emt 0:00:04]} 6. Bg2 {[%emt 0:00:08]} O-O {[%emt 0:00:13]} 7. O-O {[%emt 0:00:07]} Nbd7 {[%emt 0:00:07]} 8. Qc2 {[%emt 0:00:15] E11: Bogo-Indian.} Ne4 {[%emt 0:00:08]} 9. Bc1 {[%emt 0:07:05]} c6 {[%emt 0:01:05]} 10. Nc3 $5 {[%emt 0:00:49][%cal Bb1c3,Bc3e2,Be2f4][%mdl 4] The position is equal. A promising side line.} f5 {[%emt 0:00:49]} 11. b3 {[%emt 0:00:46]} b6 {[%emt 0:03:29] [#]} 12. e3 $146 {[%emt 0:01:38]} ({Predecessor:} 12. Nxe4 fxe4 13. Ne1 Bb7 14. f3 Bf6 15. Bb2 exf3 16. Bxf3 Rc8 17. e4 e5 18. Rd1 exd4 19. Bxd4 Bxd4+ 20. Rxd4 {0-1 (44) Chitlange,S (2167)-Sardana,R (2461) Chess.com INT 2020}) 12... Bb7 {[%emt 0:06:41]} 13. Bb2 {[%emt 0:01:20]} g5 {[%emt 0:01:21]} 14. Ne2 {[%emt 0:01:42]} Rc8 {[%emt 0:06:51]} 15. Ne5 {[%emt 0:06:57]} g4 {[%emt 0:01:12]} (15... Qe8 $11) 16. Bxe4 $16 {[%emt 0:14:04]} Nxe5 {[%emt 0:04:57]} (16... dxe4 17. Nf4 Rf6 18. a4 $11) 17. dxe5 {[%emt 0:00:36]} fxe4 {[%emt 0:01:01]} 18. Nf4 {[%emt 0:00:06]} Qd7 {[%emt 0:02:24]} 19. Rad1 {[%emt 0:07:56]} ({White should try} 19. Qe2 $16) 19... Rf5 {[%emt 0:07:25] [#]} ({Black should play} 19... Bg5 $14) 20. Qxe4 $1 {[%emt 0:01:03][%mdl 512]} Rcf8 {[%emt 0:00:59]} 21. Qc2 {[%emt 0:03:02] &Bianco is more active.} Bd8 {[%emt 0:02:59]} (21... Bg5 $16 22. cxd5 cxd5) 22. Qe2 $18 {[%emt 0:09:07]} h5 {[%emt 0:05:23]} 23. e4 {[%emt 0:00:22]} Rxf4 {[%emt 0:00:57]} 24. gxf4 {[%emt 0:00:05]} Rxf4 {[%emt 0:00:14]} 25. Qe3 $1 {[%emt 0:08:32]} Bg5 {[%emt 0:03:25]} 26. exd5 {[%emt 0:03:31]} (26. Bc1 $142) 26... cxd5 $16 {[%emt 0:00:17]} 27. Rd4 $1 {[%emt 0:00:27]} Rf5 {[%emt 0:04:10]} 28. Qd3 {[%emt 0:00:31]} Qf7 $1 {[%emt 0:00:56]} 29. Qe2 {[%emt 0:01:34]} (29. cxd5 $14 Bxd5 30. Qc2) 29... Rf3 $2 {[%emt 0:05:53] [#]} (29... dxc4 $11 30. Qxc4 (30. Rxc4 Ba6 $15) 30... Bh4) 30. cxd5 $1 {[%emt 0:00:00]} Bf4 $2 {[%emt 0:00:00][%mdl 8192] [#] Black cannot hold the game after this.} (30... Qf5 $16 {is more resistant.}) 31. Bc1 $1 $18 {[%emt 0:04:52] Bxf4 is the strong threat.} Bxd5 {[%emt 0:04:49][%cal Of4h2] ( -> ...Bxh2+!)} 32. Bxf4 {[%emt 0:01:47]} Rxf4 {[%emt 0:00:04]} 33. Rxf4 {[%emt 0:03:06]} Qxf4 {[%emt 0:00:05][%mdl 4096] Endgame KQR-KQB} 34. Qe3 {[%emt 0:00:09]} Qf5 {[%emt 0:00:06]} 35. Rc1 {[%emt 0:00:27]} Kg7 {[%emt 0:00:13]} 36. Kf1 {[%emt 0:00:48]} Kg6 {[%emt 0:00:20]} 37. Ke1 {[%emt 0:00:15]} Be4 {[%emt 0:01:30]} 38. Qd4 {[%emt 0:05:20]} ({Don't take} 38. Rc7 $6 Qxe5 39. Qc3 (39. Rxa7 Qa1+ 40. Ke2 Qb2+ 41. Qd2 Qf6 $11) 39... Qxc3+ 40. Rxc3 Kg5 $18) 38... h4 {[%emt 0:03:10]} (38... a6 $142 39. Qxb6 Qxe5) 39. Rc8 {[%emt 0:05:56]} Bf3 {[%emt 0:02:19]} 40. Kd2 {[%emt 0:00:17]} Qg5+ {[%emt 0:00:57]} (40... Be4 $142 41. Kc1 h3) 41. Qe3 {[%emt 0:00:19]} Qe7 {[%emt 0:00:12]} 42. Qd3+ {[%emt 0:01:54]} Kg5 {[%emt 0:03:01]} 43. Rg8+ {[%emt 0:01:20]} Kf4 {[%emt 0:00:29]} 44. Qd6 {[%emt 0:01:42]} Qb7 {[%emt 0:00:33]} 45. Qxe6 {[%emt 0:03:18]} (45. Rf8+ $142 Ke4 46. Qb4+ Kxe5 47. Qf4+ Kd5 48. Rd8+ Qd7 49. Rxd7+ Kc6 50. Qc7+ Kb5 51. Qc4+ Ka5 52. Rxa7#) 45... Ke4 {[%emt 0:00:46]} 46. Qc4+ {[%emt 0:02:51] White mates.} Kxe5 {[%emt 0:00:25]} 47. Rg5+ {[%emt 0:00:15]} Kd6 {[%emt 0:01:11]} 48. Qf4+ {[%emt 0:00:25]} Kc6 {[%emt 0:00:29]} 49. Qf6+ {[%emt 0:06:12] Weighted Error Value: White=0.26 (precise) /Black=0.67} 1-0